[Event "*** Titled Tuesday Blitz"]
[Site "Chess.com"]
[Date "2020.11.24"]
[Round "3"]
[White "mbachez"]
[Black "Ranindu2003"]
[Result "1-0"]
[WhiteElo "2412"]
[BlackElo "2555"]
[TimeControl "180+1"]
[EndTime "10:43:09 PST"]
[Termination "mbachez won by resignation"]

1. e4 {[%clk 0:03:00.9]} 1... c5 {[%clk 0:02:59.1]} 2. Nf3 {[%clk 0:03:00.7]}
2... Nc6 {[%clk 0:02:58.2]} 3. Bb5 {[%clk 0:02:58.6]} 3... g6 {[%clk 0:02:57.9]}
4. c3 {[%clk 0:02:57.7]} 4... Bg7 {[%clk 0:02:52.6]} 5. d4 {[%clk 0:02:57.3]}
5... cxd4 {[%clk 0:02:34.2]} 6. cxd4 {[%clk 0:02:58.2]} 6... Nf6 {[%clk
0:02:34.8]} 7. Nc3 {[%clk 0:02:51.9]} 7... d5 {[%clk 0:02:31.4]} 8. Ne5 {[%clk
0:02:49.6]} 8... Bd7 {[%clk 0:02:20.7]} 9. Nxd7 {[%clk 0:02:48.2]} 9... Qxd7
{[%clk 0:02:20.5]} 10. e5 {[%clk 0:02:45.9]} 10... Ng8 {[%clk 0:02:19]} 11. O-O
{[%clk 0:02:44.1]} 11... e6 {[%clk 0:02:16.9]} 12. Na4 {[%clk 0:02:29.9]} 12...
a6 {[%clk 0:02:10.7]} 13. Nb6 {[%clk 0:02:25.8]} 13... Qd8 {[%clk 0:02:10.6]}
14. Bxc6+ {[%clk 0:02:24.8]} 14... bxc6 {[%clk 0:02:11.5]} 15. Nxa8 {[%clk
0:02:24.9]} 15... Qxa8 {[%clk 0:02:12.4]} 16. Bd2 {[%clk 0:02:23.1]} 16... Kd7
{[%clk 0:02:07.9]} 17. Rc1 {[%clk 0:02:21.7]} 17... Ne7 {[%clk 0:02:07.6]} 18.
Qa4 {[%clk 0:02:19.7]} 18... Rc8 {[%clk 0:01:59.7]} 19. Rc2 {[%clk 0:02:17.9]}
19... f6 {[%clk 0:01:56.9]} 20. f4 {[%clk 0:02:15.1]} 20... Nf5 {[%clk
0:01:53.6]} 21. Rfc1 {[%clk 0:02:14.1]} 21... g5 {[%clk 0:01:43.5]} 22. fxg5
{[%clk 0:01:48.1]} 22... fxe5 {[%clk 0:01:42.4]} 23. dxe5 {[%clk 0:01:49]} 23...
Bxe5 {[%clk 0:01:43]} 24. Bf4 {[%clk 0:01:48.5]} 24... Bd4+ {[%clk 0:01:42.7]}
25. Kh1 {[%clk 0:01:48.2]} 25... Bg7 {[%clk 0:01:32.2]} 26. g4 {[%clk
0:01:37.9]} 26... Ne7 {[%clk 0:01:28.3]} 27. Bg3 {[%clk 0:01:34.9]} 27... e5
{[%clk 0:01:24.1]} 28. Rf1 {[%clk 0:01:33.5]} 28... Ke6 {[%clk 0:01:18.4]} 29.
Rcf2 {[%clk 0:01:29.5]} 29... Rf8 {[%clk 0:01:04.2]} 30. Rxf8 {[%clk 0:01:21.8]}
30... Bxf8 {[%clk 0:01:05.1]} 31. Bxe5 {[%clk 0:01:21.4]} 31... Kd7 {[%clk
0:01:05.7]} 32. Bg3 {[%clk 0:01:16.7]} 32... Ng6 {[%clk 0:01:03.5]} 33. Qc2
{[%clk 0:01:13.3]} 33... c5 {[%clk 0:01:00.1]} 34. Qf5+ {[%clk 0:01:08.5]} 34...
Kd8 {[%clk 0:00:59.9]} 35. Qxf8+ {[%clk 0:01:06.7]} 1-0

[Event "*** Titled Tuesday Blitz"]
[Site "Chess.com"]
[Date "2020.11.24"]
[Round "3"]
[White "Orest_Vovk"]
[Black "IsuruAlahakoon"]
[Result "1-0"]
[WhiteElo "2530"]
[BlackElo "2345"]
[TimeControl "180+1"]
[EndTime "10:43:12 PST"]
[Termination "Orest_Vovk won by resignation"]

1. h3 {[%clk 0:03:00.9]} 1... d5 {[%clk 0:02:59.3]} 2. e4 {[%clk 0:03:00.9]}
2... dxe4 {[%clk 0:02:58.2]} 3. Nc3 {[%clk 0:03:00.3]} 3... e5 {[%clk
0:02:57.1]} 4. Nxe4 {[%clk 0:02:59.8]} 4... Nc6 {[%clk 0:02:55.1]} 5. Bc4 {[%clk
0:02:59]} 5... f5 {[%clk 0:02:53.4]} 6. Nc3 {[%clk 0:02:57.1]} 6... Bc5 {[%clk
0:02:52.8]} 7. d3 {[%clk 0:02:57.1]} 7... Nf6 {[%clk 0:02:51.6]} 8. Nf3 {[%clk
0:02:51]} 8... e4 {[%clk 0:02:50.9]} 9. Ng5 {[%clk 0:02:44.4]} 9... Ne5 {[%clk
0:02:49.6]} 10. Bb3 {[%clk 0:02:36.6]} 10... h6 {[%clk 0:02:49.1]} 11. Ne6
{[%clk 0:02:32.2]} 11... Bxe6 {[%clk 0:02:48.3]} 12. Bxe6 {[%clk 0:02:33.1]}
12... exd3 {[%clk 0:02:47.3]} 13. Bxf5 {[%clk 0:02:24.1]} 13... O-O {[%clk
0:02:29.6]} 14. O-O {[%clk 0:02:22.1]} 14... dxc2 {[%clk 0:02:05.3]} 15. Qxd8
{[%clk 0:02:20.2]} 15... Raxd8 {[%clk 0:02:06.1]} 16. Bxc2 {[%clk 0:02:20.1]}
16... Nh5 {[%clk 0:02:00.9]} 17. Ne4 {[%clk 0:02:02.6]} 17... Bb6 {[%clk
0:02:00.3]} 18. Bd2 {[%clk 0:01:55.9]} 18... Rxd2 {[%clk 0:01:55.8]} 19. Nxd2
{[%clk 0:01:55.1]} 19... Ng3 {[%clk 0:01:56]} 20. Ne4 {[%clk 0:01:48.3]} 20...
Nxf1 {[%clk 0:01:53.5]} 21. Kxf1 {[%clk 0:01:42.3]} 21... Nc4 {[%clk 0:01:45.8]}
22. Bb3 {[%clk 0:01:40.4]} 22... Kh8 {[%clk 0:00:40.6]} 23. Bxc4 {[%clk
0:01:39.8]} 23... Rd8 {[%clk 0:00:41.5]} 24. Ke2 {[%clk 0:01:34.5]} 24... Rd4
{[%clk 0:00:41.8]} 25. Bd3 {[%clk 0:01:34.3]} 25... c5 {[%clk 0:00:38]} 26. Rc1
{[%clk 0:01:32.1]} 26... Rd5 {[%clk 0:00:34.9]} 27. Bc4 {[%clk 0:01:29.7]} 27...
Re5 {[%clk 0:00:34.9]} 28. f3 {[%clk 0:01:29.6]} 28... a6 {[%clk 0:00:35.3]} 29.
Rd1 {[%clk 0:01:28.3]} 29... Ba7 {[%clk 0:00:30.7]} 30. Rd7 {[%clk 0:01:25.9]}
1-0

[Event "*** Titled Tuesday Blitz"]
[Site "Chess.com"]
[Date "2020.11.24"]
[Round "3"]
[White "KetiTsatsalashvili"]
[Black "Chessdreamer2020"]
[Result "0-1"]
[WhiteElo "2293"]
[BlackElo "2517"]
[TimeControl "180+1"]
[EndTime "10:43:18 PST"]
[Termination "Chessdreamer2020 won by resignation"]

1. Nf3 {[%clk 0:03:00.9]} 1... c5 {[%clk 0:02:58.1]} 2. c4 {[%clk 0:02:58]} 2...
Nc6 {[%clk 0:02:58.5]} 3. e3 {[%clk 0:02:56.5]} 3... e5 {[%clk 0:02:57.1]} 4.
Nc3 {[%clk 0:02:54.2]} 4... f5 {[%clk 0:02:56.1]} 5. d3 {[%clk 0:02:46.7]} 5...
Nf6 {[%clk 0:02:55.5]} 6. g3 {[%clk 0:02:46.6]} 6... d5 {[%clk 0:02:52.3]} 7.
cxd5 {[%clk 0:02:44.3]} 7... Nxd5 {[%clk 0:02:53.2]} 8. Bg2 {[%clk 0:02:44.2]}
8... Ndb4 {[%clk 0:02:52.7]} 9. Bf1 {[%clk 0:02:26.7]} 9... Be7 {[%clk
0:02:37.8]} 10. a3 {[%clk 0:02:26.8]} 10... Nd5 {[%clk 0:02:35.4]} 11. Bg2
{[%clk 0:02:26.4]} 11... Be6 {[%clk 0:02:33.2]} 12. O-O {[%clk 0:02:21.4]} 12...
O-O {[%clk 0:02:33.7]} 13. Qe2 {[%clk 0:02:20.8]} 13... Qd7 {[%clk 0:02:29.5]}
14. Rd1 {[%clk 0:02:19.4]} 14... Rad8 {[%clk 0:02:29.9]} 15. Bd2 {[%clk
0:02:07.2]} 15... b6 {[%clk 0:02:29.2]} 16. Nxd5 {[%clk 0:02:06]} 16... Bxd5
{[%clk 0:02:27.9]} 17. Bc3 {[%clk 0:02:06.5]} 17... Bf6 {[%clk 0:02:26.4]} 18.
e4 {[%clk 0:01:20.9]} 18... Bb3 {[%clk 0:02:21.8]} 19. Rd2 {[%clk 0:01:18.9]}
19... f4 {[%clk 0:02:12.8]} 20. gxf4 {[%clk 0:01:05.9]} 20... exf4 {[%clk
0:02:13]} 21. Bxf6 {[%clk 0:00:54.6]} 21... Rxf6 {[%clk 0:02:12.4]} 22. Kh1
{[%clk 0:00:54.7]} 22... Rd6 {[%clk 0:02:02.5]} 23. Bf1 {[%clk 0:00:28.8]} 23...
c4 {[%clk 0:01:50.1]} 24. e5 {[%clk 0:00:16.8]} 24... cxd3 {[%clk 0:01:48.6]}
25. Qe4 {[%clk 0:00:17.1]} 25... Bd5 {[%clk 0:01:40.8]} 26. Qxd3 {[%clk
0:00:16]} 26... Bxf3+ {[%clk 0:01:40.4]} 27. Qxf3 {[%clk 0:00:16.1]} 27... Rxd2
{[%clk 0:01:40.9]} 28. Re1 {[%clk 0:00:15.8]} 28... Qd4 {[%clk 0:01:35.1]} 29.
Qxc6 {[%clk 0:00:14.6]} 29... Qxf2 {[%clk 0:01:28.1]} 30. Be2 {[%clk 0:00:15]}
30... Qxe1+ {[%clk 0:01:27.1]} 0-1

[Event "*** Titled Tuesday Blitz"]
[Site "Chess.com"]
[Date "2020.11.24"]
[Round "3"]
[White "pastouche06"]
[Black "Zarikovs1999"]
[Result "0-1"]
[WhiteElo "2531"]
[BlackElo "2385"]
[TimeControl "180+1"]
[EndTime "10:43:19 PST"]
[Termination "Zarikovs1999 won by resignation"]

1. d4 {[%clk 0:03:00.9]} 1... Nf6 {[%clk 0:02:51.2]} 2. c4 {[%clk 0:03:00]} 2...
c5 {[%clk 0:02:50.3]} 3. d5 {[%clk 0:02:59.4]} 3... b5 {[%clk 0:02:50.5]} 4.
cxb5 {[%clk 0:03:00.3]} 4... a6 {[%clk 0:02:50.7]} 5. bxa6 {[%clk 0:03:01.2]}
5... g6 {[%clk 0:02:49.5]} 6. Nc3 {[%clk 0:03:01.8]} 6... Bg7 {[%clk 0:02:50]}
7. e4 {[%clk 0:03:02.3]} 7... O-O {[%clk 0:02:50.7]} 8. e5 {[%clk 0:03:02.3]}
8... Ne8 {[%clk 0:02:50.2]} 9. h4 {[%clk 0:03:02.6]} 9... Bxe5 {[%clk
0:02:17.8]} 10. Bh6 {[%clk 0:03:01.3]} 10... Ng7 {[%clk 0:02:11.6]} 11. h5
{[%clk 0:02:56.1]} 11... Qb6 {[%clk 0:02:03.8]} 12. Qd2 {[%clk 0:02:51.4]} 12...
Bxa6 {[%clk 0:02:03.4]} 13. Nf3 {[%clk 0:02:50.4]} 13... Bf6 {[%clk 0:01:51.3]}
14. hxg6 {[%clk 0:02:31.9]} 14... fxg6 {[%clk 0:01:52.2]} 15. Ng5 {[%clk
0:02:17.4]} 15... Bd4 {[%clk 0:01:47.4]} 16. Nge4 {[%clk 0:01:40.9]} 16... d6
{[%clk 0:01:44.7]} 17. f3 {[%clk 0:01:12.5]} 17... Nd7 {[%clk 0:01:32.1]} 18.
Ng5 {[%clk 0:01:04]} 18... Rfb8 {[%clk 0:01:12.1]} 19. Rb1 {[%clk 0:00:48.1]}
19... Nf5 {[%clk 0:01:10.7]} 20. Ne6 {[%clk 0:00:47.4]} 20... Bf6 {[%clk
0:01:11.2]} 21. g4 {[%clk 0:00:40]} 21... Ng3 {[%clk 0:01:06.7]} 22. Bxa6 {[%clk
0:00:32.8]} 22... Qxa6 {[%clk 0:01:04.5]} 23. Rg1 {[%clk 0:00:19.4]} 23... Bxc3
{[%clk 0:01:03]} 0-1

[Event "*** Titled Tuesday Blitz"]
[Site "Chess.com"]
[Date "2020.11.24"]
[Round "3"]
[White "PLAYER_2006_M"]
[Black "Morshynska"]
[Result "1-0"]
[WhiteElo "2502"]
[BlackElo "2266"]
[TimeControl "180+1"]
[EndTime "10:43:23 PST"]
[Termination "PLAYER_2006_M won on time"]

1. d4 {[%clk 0:03:00.9]} 1... d5 {[%clk 0:02:59.6]} 2. Nc3 {[%clk 0:03:00.7]}
2... Nf6 {[%clk 0:02:58.2]} 3. Bf4 {[%clk 0:03:00.7]} 3... Bf5 {[%clk
0:02:57.2]} 4. f3 {[%clk 0:03:00.6]} 4... e6 {[%clk 0:02:56.4]} 5. g4 {[%clk
0:03:00.8]} 5... Bg6 {[%clk 0:02:56.1]} 6. h4 {[%clk 0:03:01.4]} 6... h6 {[%clk
0:02:55.4]} 7. e3 {[%clk 0:03:01.2]} 7... Bd6 {[%clk 0:02:54.6]} 8. Nh3 {[%clk
0:03:01.4]} 8... a6 {[%clk 0:02:47.9]} 9. Bd3 {[%clk 0:02:59.8]} 9... Bxd3
{[%clk 0:02:46.5]} 10. Qxd3 {[%clk 0:03:00.7]} 10... Nc6 {[%clk 0:02:43.5]} 11.
O-O-O {[%clk 0:03:00.6]} 11... Bxf4 {[%clk 0:02:39.6]} 12. Nxf4 {[%clk
0:03:01.5]} 12... Qd6 {[%clk 0:01:58.3]} 13. g5 {[%clk 0:03:00.9]} 13... Nd7
{[%clk 0:01:55.2]} 14. g6 {[%clk 0:03:00.9]} 14... f5 {[%clk 0:01:17.4]} 15. Nh5
{[%clk 0:02:58.2]} 15... O-O-O {[%clk 0:01:08.5]} 16. e4 {[%clk 0:02:54.8]}
16... dxe4 {[%clk 0:00:53.1]} 17. fxe4 {[%clk 0:02:55.7]} 17... fxe4 {[%clk
0:00:41.9]} 18. Qxe4 {[%clk 0:02:51.4]} 18... Nf6 {[%clk 0:00:28.5]} 19. Nxf6
{[%clk 0:02:50]} 19... gxf6 {[%clk 0:00:29.4]} 20. d5 {[%clk 0:02:46.8]} 20...
Ne5 {[%clk 0:00:26.3]} 21. dxe6 {[%clk 0:02:43.1]} 21... Qxe6 {[%clk 0:00:27.2]}
22. h5 {[%clk 0:02:39.2]} 22... Qg4 {[%clk 0:00:16.5]} 23. Qe3 {[%clk
0:02:08.1]} 23... Qg5 {[%clk 0:00:12.7]} 24. Qxg5 {[%clk 0:02:06.2]} 24... fxg5
{[%clk 0:00:13.6]} 25. Ne4 {[%clk 0:02:05]} 25... Ng4 {[%clk 0:00:10.1]} 26.
Rhg1 {[%clk 0:02:00.4]} 26... Ne3 {[%clk 0:00:09.1]} 27. Rxd8+ {[%clk
0:01:52.1]} 27... Rxd8 {[%clk 0:00:10]} 28. Re1 {[%clk 0:01:52.1]} 28... Nf5
{[%clk 0:00:10]} 29. Rf1 {[%clk 0:01:51.3]} 29... Nd4 {[%clk 0:00:06.9]} 30. c3
{[%clk 0:01:44.2]} 30... Ne2+ {[%clk 0:00:06.9]} 31. Kc2 {[%clk 0:01:42.5]}
31... Nf4 {[%clk 0:00:07.8]} 32. Nf6 {[%clk 0:01:42]} 32... Ne6 {[%clk
0:00:02.9]} 33. Re1 {[%clk 0:01:41.1]} 33... Ng7 {[%clk 0:00:01]} 34. Re7 {[%clk
0:01:40.6]} 1-0

[Event "*** Titled Tuesday Blitz"]
[Site "Chess.com"]
[Date "2020.11.24"]
[Round "3"]
[White "ChessAurochs"]
[Black "AsaHoffmann"]
[Result "0-1"]
[WhiteElo "2546"]
[BlackElo "2394"]
[TimeControl "180+1"]
[EndTime "10:43:24 PST"]
[Termination "AsaHoffmann won by resignation"]

1. e4 {[%clk 0:03:00.9]} 1... d6 {[%clk 0:02:47.8]} 2. d4 {[%clk 0:02:59.8]}
2... Nf6 {[%clk 0:02:46.5]} 3. Nc3 {[%clk 0:02:59.9]} 3... c6 {[%clk 0:02:46.3]}
4. f4 {[%clk 0:02:54.6]} 4... Qa5 {[%clk 0:02:45.2]} 5. Bd3 {[%clk 0:02:50.4]}
5... e5 {[%clk 0:02:43.8]} 6. Nf3 {[%clk 0:02:45.1]} 6... exd4 {[%clk
0:02:42.5]} 7. Nxd4 {[%clk 0:02:44.3]} 7... Qb6 {[%clk 0:02:41.3]} 8. Nb3 {[%clk
0:02:38.8]} 8... a5 {[%clk 0:02:37.1]} 9. Qe2 {[%clk 0:02:33.7]} 9... a4 {[%clk
0:02:35.6]} 10. Be3 {[%clk 0:02:32]} 10... Qb4 {[%clk 0:02:34.8]} 11. a3 {[%clk
0:02:29.7]} 11... axb3 {[%clk 0:02:34.4]} 12. axb4 {[%clk 0:02:20.7]} 12...
Rxa1+ {[%clk 0:02:33.1]} 13. Nd1 {[%clk 0:02:18.4]} 13... Bg4 {[%clk 0:02:32.1]}
14. Qd2 {[%clk 0:01:35.3]} 14... Rxd1+ {[%clk 0:02:21.9]} 15. Qxd1 {[%clk
0:01:35.9]} 15... Bxd1 {[%clk 0:02:21.1]} 16. Kxd1 {[%clk 0:01:36.8]} 16...
bxc2+ {[%clk 0:02:18.1]} 17. Kxc2 {[%clk 0:01:37.7]} 17... Be7 {[%clk
0:02:15.2]} 18. Ra1 {[%clk 0:01:37]} 18... O-O {[%clk 0:02:14.7]} 19. Ra7 {[%clk
0:01:36.7]} 19... d5 {[%clk 0:01:46.6]} 20. Rxb7 {[%clk 0:01:26.7]} 20... dxe4
{[%clk 0:01:41.8]} 21. Bc4 {[%clk 0:01:22.2]} 21... Bd6 {[%clk 0:01:36.9]} 22.
b5 {[%clk 0:01:12.4]} 22... Nd5 {[%clk 0:01:31.2]} 23. Ba7 {[%clk 0:01:06.6]}
23... Bxf4 {[%clk 0:01:19.1]} 24. bxc6 {[%clk 0:00:51.7]} 24... Nxc6 {[%clk
0:00:51]} 25. Bxd5 {[%clk 0:00:50.8]} 25... Nxa7 {[%clk 0:00:50.1]} 26. Rxa7
{[%clk 0:00:51.7]} 26... e3 {[%clk 0:00:49.9]} 27. Kd3 {[%clk 0:00:35.7]} 27...
Bxh2 {[%clk 0:00:48.4]} 28. Kxe3 {[%clk 0:00:34.9]} 28... Bg1+ {[%clk 0:00:48]}
0-1

[Event "*** Titled Tuesday Blitz"]
[Site "Chess.com"]
[Date "2020.11.24"]
[Round "3"]
[White "OscarAng"]
[Black "CoachHakia"]
[Result "1-0"]
[WhiteElo "2366"]
[BlackElo "2152"]
[TimeControl "180+1"]
[EndTime "10:43:26 PST"]
[Termination "OscarAng won by checkmate"]

1. d4 {[%clk 0:02:14.5]} 1... f5 {[%clk 0:02:58.5]} 2. Nc3 {[%clk 0:02:13.9]}
2... Nf6 {[%clk 0:02:58.9]} 3. Bg5 {[%clk 0:02:12.7]} 3... d5 {[%clk 0:02:57.5]}
4. f3 {[%clk 0:02:08.2]} 4... e6 {[%clk 0:02:51.4]} 5. Qd3 {[%clk 0:02:08.4]}
5... Be7 {[%clk 0:02:45.5]} 6. O-O-O {[%clk 0:02:08.7]} 6... Nbd7 {[%clk
0:02:45]} 7. Nh3 {[%clk 0:02:05]} 7... h6 {[%clk 0:02:40.8]} 8. Bxf6 {[%clk
0:02:04.5]} 8... Nxf6 {[%clk 0:02:40.7]} 9. Nf2 {[%clk 0:02:05.4]} 9... b6
{[%clk 0:02:25.2]} 10. e4 {[%clk 0:02:04.3]} 10... Bb7 {[%clk 0:02:23.6]} 11.
exf5 {[%clk 0:02:04.2]} 11... exf5 {[%clk 0:02:21.1]} 12. Qxf5 {[%clk
0:02:03.7]} 12... O-O {[%clk 0:02:15.7]} 13. Re1 {[%clk 0:02:02.5]} 13... Bb4
{[%clk 0:02:07.7]} 14. Bd3 {[%clk 0:02:00.4]} 14... Bxc3 {[%clk 0:02:05.8]} 15.
bxc3 {[%clk 0:02:01.3]} 15... Qd6 {[%clk 0:02:02.3]} 16. Ng4 {[%clk 0:01:59.5]}
16... Ne4 {[%clk 0:01:34.3]} 17. Qe5 {[%clk 0:01:31]} 17... Qa3+ {[%clk
0:01:25.5]} 18. Kd1 {[%clk 0:01:27.9]} 18... Nxc3+ {[%clk 0:01:21.6]} 19. Kd2
{[%clk 0:01:23.6]} 19... Qb4 {[%clk 0:00:53.2]} 20. Nxh6+ {[%clk 0:00:58.1]}
20... gxh6 {[%clk 0:00:53.1]} 21. Qg3+ {[%clk 0:00:33]} 21... Kh8 {[%clk
0:00:47.8]} 22. Qe5+ {[%clk 0:00:33.4]} 22... Kg8 {[%clk 0:00:47.9]} 23. Qe6+
{[%clk 0:00:27.9]} 23... Kg7 {[%clk 0:00:45.8]} 24. Qg6+ {[%clk 0:00:26.2]}
24... Kh8 {[%clk 0:00:46.2]} 25. Qh7# {[%clk 0:00:26.6]} 1-0

[Event "*** Titled Tuesday Blitz"]
[Site "Chess.com"]
[Date "2020.11.24"]
[Round "3"]
[White "ambaixador"]
[Black "politeplayer"]
[Result "1-0"]
[WhiteElo "2446"]
[BlackElo "2227"]
[TimeControl "180+1"]
[EndTime "10:43:34 PST"]
[Termination "ambaixador won by resignation"]

1. Nf3 {[%clk 0:03:00.9]} 1... Nf6 {[%clk 0:02:58.9]} 2. c4 {[%clk 0:03:00.6]}
2... c5 {[%clk 0:02:57.2]} 3. g3 {[%clk 0:03:01.5]} 3... g6 {[%clk 0:02:56]} 4.
Bg2 {[%clk 0:03:01.8]} 4... Bg7 {[%clk 0:02:56.5]} 5. O-O {[%clk 0:03:02.6]}
5... O-O {[%clk 0:02:57]} 6. d4 {[%clk 0:03:02.9]} 6... cxd4 {[%clk 0:02:55.7]}
7. Nxd4 {[%clk 0:03:03.8]} 7... Nc6 {[%clk 0:02:56]} 8. Nc3 {[%clk 0:03:03.5]}
8... Qa5 {[%clk 0:02:56.1]} 9. Nc2 {[%clk 0:02:41.9]} 9... Qh5 {[%clk
0:02:53.1]} 10. Ne3 {[%clk 0:02:39.1]} 10... d6 {[%clk 0:02:49.4]} 11. Re1
{[%clk 0:02:34]} 11... Bh3 {[%clk 0:02:48.1]} 12. Bh1 {[%clk 0:02:29.5]} 12...
Bh6 {[%clk 0:02:37.6]} 13. Ncd5 {[%clk 0:02:26.8]} 13... Ng4 {[%clk 0:02:08.9]}
14. Nxg4 {[%clk 0:02:21.9]} 14... Bxg4 {[%clk 0:02:08.8]} 15. Bxh6 {[%clk
0:01:42.2]} 15... Qxh6 {[%clk 0:02:08.5]} 16. b4 {[%clk 0:01:42.4]} 16... Be6
{[%clk 0:01:34.1]} 17. b5 {[%clk 0:01:22.5]} 17... Bxd5 {[%clk 0:01:33.6]} 18.
Bxd5 {[%clk 0:01:23.4]} 18... Ne5 {[%clk 0:01:33.1]} 19. Bxb7 {[%clk 0:01:14.8]}
19... Ng4 {[%clk 0:01:32.2]} 20. h4 {[%clk 0:01:11.4]} 20... g5 {[%clk
0:01:09.6]} 21. Bxa8 {[%clk 0:01:00.9]} 21... Rxa8 {[%clk 0:01:08.9]} 22. Qd5
{[%clk 0:00:57.4]} 22... Rc8 {[%clk 0:01:01.2]} 23. Qxg5+ {[%clk 0:00:50.2]}
23... Qxg5 {[%clk 0:01:00.9]} 24. hxg5 {[%clk 0:00:51.1]} 24... Rxc4 {[%clk
0:00:58.1]} 25. Rec1 {[%clk 0:00:51.1]} 25... Ne5 {[%clk 0:00:46.7]} 26. Rxc4
{[%clk 0:00:49]} 26... Nxc4 {[%clk 0:00:47]} 27. a4 {[%clk 0:00:43]} 27... d5
{[%clk 0:00:42.5]} 28. a5 {[%clk 0:00:42.5]} 28... e6 {[%clk 0:00:41.1]} 29. b6
{[%clk 0:00:42.4]} 1-0

[Event "*** Titled Tuesday Blitz"]
[Site "Chess.com"]
[Date "2020.11.24"]
[Round "3"]
[White "kuban1991"]
[Black "Gusarov91"]
[Result "1-0"]
[WhiteElo "2899"]
[BlackElo "2661"]
[TimeControl "180+1"]
[EndTime "10:43:35 PST"]
[Termination "kuban1991 won by resignation"]

1. Nf3 {[%clk 0:03:00.9]} 1... c6 {[%clk 0:02:52.4]} 2. g3 {[%clk 0:03:00.7]}
2... d5 {[%clk 0:02:52.9]} 3. Bg2 {[%clk 0:03:01.3]} 3... Nf6 {[%clk 0:02:53.7]}
4. O-O {[%clk 0:03:01.8]} 4... Bg4 {[%clk 0:02:54.3]} 5. Ne5 {[%clk 0:03:01.5]}
5... Bh5 {[%clk 0:02:54.7]} 6. d4 {[%clk 0:03:01.7]} 6... Nbd7 {[%clk
0:02:55.1]} 7. c4 {[%clk 0:03:01.9]} 7... e6 {[%clk 0:02:55.2]} 8. Nc3 {[%clk
0:03:01.7]} 8... Nxe5 {[%clk 0:02:54.5]} 9. dxe5 {[%clk 0:03:02.6]} 9... Nd7
{[%clk 0:02:55.1]} 10. cxd5 {[%clk 0:03:03]} 10... cxd5 {[%clk 0:02:55.3]} 11.
f4 {[%clk 0:03:03.4]} 11... Bc5+ {[%clk 0:02:54.2]} 12. Kh1 {[%clk 0:03:02.9]}
12... O-O {[%clk 0:02:54.4]} 13. h3 {[%clk 0:03:02.5]} 13... f6 {[%clk
0:02:49.5]} 14. g4 {[%clk 0:02:47.6]} 14... Bf7 {[%clk 0:02:46.6]} 15. exf6
{[%clk 0:02:42.2]} 15... Nxf6 {[%clk 0:02:46]} 16. e4 {[%clk 0:02:37.9]} 16...
d4 {[%clk 0:02:36.1]} 17. Na4 {[%clk 0:02:37.5]} 17... b6 {[%clk 0:02:32.5]} 18.
Bd2 {[%clk 0:02:32.4]} 18... Qd7 {[%clk 0:02:30.2]} 19. Rc1 {[%clk 0:02:30.1]}
19... Rac8 {[%clk 0:02:28.7]} 20. Nxc5 {[%clk 0:02:26.6]} 20... bxc5 {[%clk
0:02:28.8]} 21. b3 {[%clk 0:02:27]} 21... Rfe8 {[%clk 0:02:19]} 22. Qf3 {[%clk
0:02:24.9]} 22... e5 {[%clk 0:02:16.1]} 23. f5 {[%clk 0:02:23.9]} 23... h6
{[%clk 0:01:52.7]} 24. h4 {[%clk 0:02:18.5]} 24... Rcd8 {[%clk 0:01:48]} 25. g5
{[%clk 0:02:16.9]} 25... Nxe4 {[%clk 0:01:48.3]} 26. Qxe4 {[%clk 0:02:12]} 26...
Bd5 {[%clk 0:01:48.4]} 27. Qg4 {[%clk 0:02:10.6]} 27... e4 {[%clk 0:01:48.2]}
28. Rxc5 {[%clk 0:02:06.6]} 28... Ba8 {[%clk 0:01:45.3]} 29. Ba5 {[%clk
0:01:49.6]} 29... Qd6 {[%clk 0:00:47.1]} 30. gxh6 {[%clk 0:01:41.4]} 30... Rd7
{[%clk 0:00:47.5]} 31. f6 {[%clk 0:01:29.9]} 31... Rf7 {[%clk 0:00:40.6]} 32.
Rg5 {[%clk 0:01:19.4]} 32... Qf8 {[%clk 0:00:16.4]} 33. hxg7 {[%clk 0:01:18.5]}
33... Qd6 {[%clk 0:00:15.7]} 34. Qh5 {[%clk 0:01:17.5]} 1-0

[Event "*** Titled Tuesday Blitz"]
[Site "Chess.com"]
[Date "2020.11.24"]
[Round "3"]
[White "HajduIstvanCM"]
[Black "geordie_derraugh"]
[Result "1/2-1/2"]
[WhiteElo "1704"]
[BlackElo "2459"]
[TimeControl "180+1"]
[EndTime "10:43:36 PST"]
[Termination "Game drawn by repetition"]

1. e4 {[%clk 0:03:00.9]} 1... c5 {[%clk 0:02:59.8]} 2. Nf3 {[%clk 0:02:59.7]}
2... e6 {[%clk 0:03:00]} 3. c4 {[%clk 0:02:57.8]} 3... Nc6 {[%clk 0:02:59.6]} 4.
d4 {[%clk 0:02:52.7]} 4... cxd4 {[%clk 0:02:59.5]} 5. Nxd4 {[%clk 0:02:52.6]}
5... Nf6 {[%clk 0:02:57.8]} 6. Nc3 {[%clk 0:02:50.7]} 6... Bb4 {[%clk
0:02:56.8]} 7. Nxc6 {[%clk 0:02:44.1]} 7... bxc6 {[%clk 0:02:57.7]} 8. Bd3
{[%clk 0:02:40.9]} 8... d5 {[%clk 0:02:56.2]} 9. cxd5 {[%clk 0:02:39.2]} 9...
exd5 {[%clk 0:02:56.1]} 10. exd5 {[%clk 0:02:30]} 10... Nxd5 {[%clk 0:02:51.2]}
11. O-O {[%clk 0:02:16.4]} 11... Nxc3 {[%clk 0:02:37]} 12. bxc3 {[%clk
0:01:55.6]} 12... Bxc3 {[%clk 0:02:33.2]} 13. Qe2+ {[%clk 0:01:37.9]} 13... Be6
{[%clk 0:02:30.7]} 14. Rb1 {[%clk 0:01:25.4]} 14... O-O {[%clk 0:02:19.8]} 15.
Qc2 {[%clk 0:01:12.7]} 15... Be5 {[%clk 0:02:08.5]} 16. Bxh7+ {[%clk 0:01:11.7]}
16... Kh8 {[%clk 0:02:08.4]} 17. Be4 {[%clk 0:01:08.8]} 17... Rc8 {[%clk
0:02:01]} 18. Qe2 {[%clk 0:00:59.3]} 18... Qh4 {[%clk 0:01:55.4]} 19. g3 {[%clk
0:00:51.4]} 19... Qh3 {[%clk 0:01:33.2]} 20. Bg2 {[%clk 0:00:43.5]} 20... Qf5
{[%clk 0:01:32.9]} 21. Be4 {[%clk 0:00:37.2]} 21... Qg4 {[%clk 0:01:22]} 22. Bf3
{[%clk 0:00:33.8]} 22... Qf5 {[%clk 0:01:05.9]} 23. Be4 {[%clk 0:00:32.8]} 23...
Qh3 {[%clk 0:00:50.8]} 24. Bg2 {[%clk 0:00:32]} 24... Qf5 {[%clk 0:00:27.8]} 25.
Be4 {[%clk 0:00:31.2]} 1/2-1/2